bitfinex-derivatives/quotes_BTCF0:USTF0_20241218
["timestamp","ask_amount","ask_price","bid_price","bid_amount"]
[1734487362984,0.408393,105040.0,105020.0,1.08939972]
[1734487364883,0.408393,105040.0,105020.0,1.13700172]
[1734487365988,0.408393,105040.0,105020.0,0.50939972]
[1734487365989,0.52699643,105030.0,105020.0,0.50939972]
[1734487366188,0.52707863,105030.0,105020.0,0.50939972]
[1734487366386,0.4084802,105030.0,105020.0,0.50939972]
[1734487366795,0.82707863,105030.0,105020.0,0.50939972]
[1734487367878,0.047609,105010.0,104990.0,0.2301]
[1734487368090,0.408409,105010.0,104990.0,0.2301]
[1734487368280,0.408409,105010.0,104990.0,0.277715]
[1734487369792,0.408411,105000.0,104990.0,0.2301]
[1734487371763,0.047611,105000.0,104990.0,0.2301]
[1734487372064,0.408411,105000.0,104990.0,0.2301]
[1734487372849,0.408411,105000.0,104980.0,0.04762]
[1734487373451,0.3608,105000.0,104980.0,0.04762]
[1734487373656,0.047616,104990.0,104970.0,0.2399]
[1734487373860,0.52701443,104990.0,104970.0,0.287525]
[1734487374562,0.408416,104990.0,104970.0,0.287525]
[1734487374751,0.047616,104990.0,104970.0,0.287525]
[1734487374955,0.16621843,104980.0,104970.0,0.2399]
[1734487375159,0.408416,104990.0,104970.0,0.2399]
[1734487375160,0.47939843,104990.0,104970.0,0.2399]
[1734487375361,0.04762,104980.0,104970.0,0.2399]
[1734487376563,0.40842,104980.0,104970.0,0.2399]
[1734487377567,0.52701843,104980.0,104970.0,0.01]
[1734487377766,0.52702043,104980.0,104950.0,0.1114]
[1734487377976,0.52702843,104960.0,104950.0,0.1214]
[1734487379061,0.52702843,104960.0,104950.0,0.1114]
[1734487379462,0.047634,104950.0,104940.0,0.1217]
[1734487379670,0.04763,104960.0,104950.0,0.009]
[1734487379968,0.408426,104970.0,104950.0,0.056634]
[1734487380163,0.047626,104970.0,104960.0,0.04763]
[1734487380365,0.001,104980.0,104970.0,0.047625]
[1734487380672,0.00142979,104990.0,104980.0,0.04762]
[1734487380971,0.408405,105020.0,105000.0,0.047611]
[1734487381468,0.047605,105020.0,105000.0,0.408411]
[1734487381665,0.047605,105020.0,105000.0,0.515611]
[1734487382267,0.37982385,105030.0,105000.0,0.468]
[1734487382465,0.42742285,105030.0,105010.0,0.047607]
[1734487383178,8.22e-05,105030.0,105020.0,0.408402]
[1734487383468,8.22e-05,105030.0,105020.0,0.52700043]
[1734487383670,0.00142897,105050.0,105030.0,0.047595]
[1734487383970,0.00142897,105050.0,105040.0,0.52699143]
[1734487384267,0.01,105080.0,105050.0,0.047585]
[1734487384468,0.01,105080.0,105070.0,0.40838]
[1734487384660,0.047563,105110.0,105080.0,0.047574]
[1734487384857,0.3608,105110.0,105080.0,0.408374]
[1734487385061,0.047567,105100.0,105080.0,0.408374]
[1734487385261,0.048072,105090.0,105070.0,0.36087562]
[1734487385459,0.0005,105090.0,105080.0,0.408375]
[1734487386071,0.0005,105090.0,105080.0,0.3608]
[1734487386379,0.0005,105090.0,105070.0,7.562e-05]
[1734487386380,0.047575,105080.0,105070.0,7.562e-05]
[1734487386580,0.408375,105080.0,105070.0,7.562e-05]
[1734487387371,0.047575,105080.0,105070.0,7.562e-05]
[1734487387869,0.408375,105080.0,105070.0,7.562e-05]
[1734487388570,0.408375,105080.0,105070.0,0.00107562]
[1734487392481,0.708375,105080.0,105070.0,0.00107562]
[1734487392673,0.408375,105080.0,105070.0,0.00107562]
[1734487393978,0.047587,105060.0,105040.0,0.163891]
[1734487394279,0.047587,105060.0,105040.0,0.524691]
[1734487395179,0.047587,105060.0,105040.0,0.525691]
[1734487395695,0.3608,105070.0,105050.0,0.52771084]
[1734487395978,0.408867,105100.0,105080.0,0.047574]
[1734487396169,0.408867,105100.0,105080.0,0.408374]
[1734487396480,0.047571,105090.0,105080.0,0.3608]
[1734487396870,0.408366,105100.0,105080.0,0.408372]
[1734487397070,0.3608,105100.0,105080.0,0.3608]
[1734487397267,0.0005,105100.0,105090.0,0.408371]
[1734487398174,0.048066,105100.0,105080.0,0.408375]
[1734487398476,0.047566,105100.0,105080.0,0.408375]
[1734487398677,0.38160399,105110.0,105080.0,0.408375]
[1734487398879,0.02080399,105110.0,105100.0,0.3608]
[1734487399178,0.001428,105110.0,105100.0,0.3608]
[1734487399380,0.001928,105110.0,105100.0,0.4722]
[1734487399981,0.41029,105110.0,105100.0,0.1114]
[1734487400183,0.04757,105100.0,105080.0,0.4714]
[1734487400378,0.40837,105100.0,105080.0,0.4714]
[1734487400573,0.3608,105100.0,105080.0,0.4714]
[1734487400778,0.047571,105090.0,105080.0,0.4714]
[1734487400979,0.408371,105090.0,105080.0,0.1106]
[1734487401178,0.047571,105090.0,105080.0,0.1106]
[1734487401678,0.3608,105100.0,105070.0,0.3608]
[1734487401982,0.3608,105100.0,105060.0,0.3608]
[1734487401983,0.047575,105080.0,105060.0,0.3608]
[1734487402373,0.04758,105070.0,105050.0,0.627485]
[1734487403578,0.408384,105060.0,105050.0,0.1106]
[1734487403781,0.408384,105060.0,105020.0,0.3608]
[1734487403782,0.047596,105040.0,105020.0,0.3608]
[1734487403988,0.047598,105030.0,105010.0,0.4718]
[1734487404172,0.047598,105030.0,105010.0,0.111]
[1734487404173,0.047602,105020.0,105010.0,0.111]
[1734487404980,0.408402,105020.0,105010.0,0.111]
[1734487405373,0.047602,105020.0,105010.0,0.111]
[1734487405578,0.408402,105020.0,105010.0,0.111]
[1734487406371,0.047602,105020.0,105010.0,0.111]
[1734487406576,0.408402,105020.0,105010.0,0.111]
[1734487407189,0.047607,105010.0,105000.0,0.1137]
[1734487408487,0.408407,105010.0,105000.0,0.1137]
[1734487408690,0.047611,105000.0,104990.0,0.1105]
[1734487408880,0.408411,105000.0,104990.0,0.1105]
[1734487409073,0.3608,105000.0,104970.0,0.408422]
[1734487409391,0.047616,104990.0,104980.0,0.04762]
[1734487409684,0.3608,105000.0,104980.0,0.40842]
[1734487409875,0.408413,105000.0,104980.0,0.40842]
[1734487412185,0.3608,105010.0,104990.0,0.408416]
[1734487412575,0.3608,105010.0,105000.0,0.159711]
[1734487412778,0.40982702,105030.0,105000.0,0.639611]
[1734487412981,0.047602,105020.0,105000.0,0.639611]
[1734487413190,0.047602,105020.0,105000.0,0.278811]
[1734487413383,0.047602,105020.0,105010.0,0.3608]
[1734487414884,0.5294461,105030.0,105010.0,0.3608]
[1734487415080,0.5294461,105030.0,105010.0,0.408406]
[1734487415487,0.00142902,105030.0,105020.0,0.408402]
[1734487415892,0.21487918,105050.0,105030.0,0.047598]
[1734487416101,0.21487918,105050.0,105030.0,0.527298]
[1734487416594,0.16729018,105050.0,105030.0,0.527298]
[1734487416792,0.21488018,105050.0,105030.0,0.527298]
[1734487417288,0.21488018,105050.0,105030.0,0.4797]
[1734487417494,7.31e-05,105050.0,105040.0,0.047593]
[1734487417692,7.31e-05,105050.0,105040.0,0.408393]
[1734487418800,7.31e-05,105050.0,105040.0,0.708393]
[1734487419097,7.31e-05,105050.0,105040.0,0.525393]
[1734487419396,0.21622747,105070.0,105040.0,0.5254985]
[1734487419397,0.047585,105060.0,105040.0,0.5254985]
[1734487419588,0.57702547,105070.0,105040.0,0.5254985]
[1734487421587,0.57702547,105070.0,105050.0,0.047588]
[1734487422097,0.57702547,105070.0,105040.0,0.1171055]
[1734487422098,0.047589,105050.0,105040.0,0.1171055]
[1734487422393,0.57560608,105050.0,105040.0,0.0001055]
[1734487423795,0.87560608,105050.0,105040.0,0.0001055]
[1734487423994,0.047596,105040.0,105010.0,0.870926]
[1734487424191,0.408396,105040.0,105010.0,0.519406]
[1734487424598,0.0476,105030.0,105010.0,0.519406]
[1734487425897,0.047596,105040.0,105020.0,0.047602]
[1734487426101,0.408389,105050.0,105020.0,0.3608]
[1734487426301,0.408384,105060.0,105030.0,0.4807]
[1734487426490,0.047584,105060.0,105040.0,0.3608]
[1734487426790,0.047584,105060.0,105040.0,0.518293]
[1734487427292,0.047584,105060.0,105050.0,0.3608]
[1734487428102,0.047584,105060.0,105050.0,0.047589]
[1734487428997,0.5283322,105070.0,105050.0,0.047589]
[1734487429496,0.5283322,105070.0,105050.0,0.408389]
[1734487429699,0.047584,105060.0,105050.0,0.047589]
[1734487430899,0.047589,105050.0,105040.0,0.5912]
[1734487431103,0.52691281,105050.0,105040.0,0.1099]
[1734487431707,0.047593,105040.0,105030.0,0.1199]
[1734487432202,0.047598,105030.0,105020.0,0.526401]
[1734487433004,0.047598,105030.0,105020.0,0.165601]
[1734487433407,0.047598,105030.0,105020.0,0.526401]
[1734487434000,0.3608,105040.0,105020.0,0.526401]
[1734487434201,0.408395,105040.0,105030.0,0.047598]
[1734487434409,0.047595,105040.0,105030.0,0.047598]
[1734487435102,0.47932381,105050.0,105030.0,0.047598]
[1734487435497,0.47932381,105050.0,105020.0,0.526402]
[1734487435704,0.16612181,105030.0,105020.0,0.165602]
[1734487436102,0.16612181,105030.0,105010.0,0.4705]
[1734487436103,0.047602,105020.0,105010.0,0.047606]
[1734487438709,0.047602,105020.0,105010.0,0.408406]
[1734487439216,0.047602,105020.0,105010.0,0.047606]
[1734487439513,0.047602,105020.0,105010.0,0.408406]
[1734487440511,0.047602,105020.0,105010.0,0.047606]
[1734487441022,0.408402,105020.0,105010.0,0.047606]
[1734487441506,0.47932381,105020.0,104990.0,1.0]
[1734487441707,0.52693481,105000.0,104990.0,1.0]
[1734487441913,0.3608,105000.0,104990.0,1.05653788]
[1734487442216,0.047608,105010.0,105000.0,0.047611]
[1734487442514,0.3608,105020.0,105000.0,0.047611]
[1734487442515,0.408403,105020.0,105000.0,0.047611]
[1734487443018,0.408403,105020.0,105000.0,0.55914548]
[1734487443314,0.408403,105020.0,105000.0,1.12751712]
[1734487443611,0.40982703,105030.0,105010.0,0.3608]
[1734487443820,0.40982703,105030.0,105020.0,0.047602]
[1734487444006,0.40982703,105030.0,105010.0,1.16376257]
[1734487444207,0.04902703,105030.0,105010.0,1.21136857]
[1734487444419,0.04902703,105030.0,105010.0,1.16376257]
[1734487444610,0.04902703,105030.0,105020.0,0.047602]
[1734487445018,0.04902703,105030.0,105020.0,0.55894185]
[1734487445314,0.04902703,105030.0,105020.0,0.51133985]
[1734487445719,0.04902703,105030.0,105020.0,0.3608]
[1734487445921,0.00142903,105030.0,105020.0,0.408402]
[1734487446512,0.11995284,105030.0,105010.0,0.643206]
[1734487446713,0.408402,105020.0,105010.0,0.2348]
[1734487446924,0.408402,105020.0,105010.0,1.07948728]
[1734487447214,0.408402,105020.0,105000.0,1.12711735]
[1734487447416,0.047602,105020.0,105000.0,0.87215615]
[1734487447613,0.04902803,105030.0,105020.0,0.047602]
[1734487447815,0.00142903,105030.0,105020.0,0.408402]
[1734487448007,0.00142903,105030.0,105020.0,0.526402]
[1734487448517,0.00142903,105030.0,105020.0,1.03762618]
[1734487448815,0.00142903,105030.0,105020.0,1.60563448]
[1734487449004,0.00142903,105030.0,105020.0,1.0944103]
[1734487449208,0.11852381,105050.0,105020.0,1.0944103]
[1734487449413,0.11852381,105050.0,105030.0,0.408394]
[1734487449621,0.11852381,105050.0,105040.0,0.047593]
[1734487450007,0.42754755,105060.0,105050.0,0.047589]
[1734487450210,0.00142839,105070.0,105050.0,0.3608]
[1734487450420,0.00142839,105070.0,105060.0,0.408384]
[1734487450716,8.807e-05,105080.0,105070.0,0.04758]
[1734487451019,8.807e-05,105080.0,105070.0,0.40838]
[1734487451206,8.807e-05,105080.0,105070.0,0.82690381]
[1734487452010,0.0831299,105100.0,105090.0,0.047571]
[1734487452207,0.0831299,105100.0,105090.0,0.769171]
[1734487452414,0.1311979,105100.0,105080.0,0.408375]
[1734487452609,0.1311979,105100.0,105090.0,0.047571]
[1734487452610,0.4444299,105100.0,105090.0,0.047571]
[1734487452813,0.4444299,105100.0,105090.0,0.408371]
[1734487452814,0.0836299,105100.0,105090.0,0.408371]
[1734487453014,0.0836299,105100.0,105090.0,0.40846318]
[1734487453214,0.0005,105100.0,105090.0,0.40846318]
[1734487453415,0.52688581,105110.0,105090.0,0.40846318]
[1734487453825,0.047566,105100.0,105090.0,0.36089218]
[1734487454119,0.408366,105100.0,105090.0,9.218e-05]
[1734487454925,0.047566,105100.0,105090.0,9.218e-05]
[1734487455616,0.408366,105100.0,105090.0,9.218e-05]
[1734487455921,0.047566,105100.0,105090.0,9.218e-05]
[1734487456117,0.47932381,105110.0,105090.0,9.218e-05]
[1734487456317,0.16608581,105110.0,105090.0,9.218e-05]
[1734487456518,0.16658581,105110.0,105090.0,9.218e-05]
[1734487456918,0.047566,105100.0,105090.0,9.218e-05]
[1734487458722,0.52738581,105110.0,105090.0,0.04766318]
[1734487459116,0.0005,105110.0,105100.0,0.408366]
[1734487459610,0.00011739,105120.0,105110.0,0.047562]
[1734487459813,0.00011739,105120.0,105110.0,0.408362]
[1734487461418,0.00061739,105120.0,105110.0,0.408362]
[1734487461929,0.00142786,105130.0,105120.0,0.047557]
[1734487462130,0.25669581,105170.0,105120.0,0.52688081]
[1734487462131,0.498972,105170.0,105120.0,0.52688081]
[1734487462437,0.42777625,105190.0,105170.0,0.047532]
[1734487462619,0.42777625,105190.0,105170.0,0.408332]
[1734487463118,0.3608,105190.0,105180.0,0.04760551]
[1734487463316,0.40984555,105200.0,105180.0,0.40840551]
[1734487463317,0.04904555,105200.0,105180.0,0.40840551]
[1734487463516,0.3608,105210.0,105180.0,0.40840551]
[1734487463719,0.02890833,105220.0,105200.0,0.70442229]
[1734487463923,0.02890833,105220.0,105200.0,0.9532978]
[1734487463924,0.01,105220.0,105200.0,0.9532978]
[1734487464127,0.40104592,105220.0,105210.0,0.2813731]
[1734487464317,0.40104592,105220.0,105210.0,0.2250575]
[1734487464525,0.40104592,105220.0,105200.0,0.2250575]
[1734487464823,0.04024592,105220.0,105210.0,0.1684042]
[1734487465025,0.40104592,105220.0,105210.0,0.1684042]
[1734487465223,0.40104592,105220.0,105200.0,0.1684042]
[1734487465224,0.047516,105210.0,105200.0,0.1684042]
[1734487465426,0.408316,105210.0,105190.0,0.3934617]
[1734487465630,0.3608,105200.0,105190.0,0.4409867]
[1734487465926,0.408321,105200.0,105190.0,0.3934617]
[1734487466123,0.408321,105200.0,105190.0,0.1684042]
[1734487466824,0.408321,105200.0,105180.0,0.39353721]
[1734487467217,0.047525,105190.0,105180.0,0.22513301]
[1734487467420,0.52684881,105190.0,105180.0,7.551e-05]
[1734487467822,0.82684881,105190.0,105180.0,5.1e-07]
[1734487468517,0.04753,105180.0,105170.0,0.06529333]
[1734487468833,0.52685381,105180.0,105170.0,3.3e-07]
[1734487469020,0.82685381,105180.0,105170.0,3.3e-07]
[1734487469422,0.82685381,105180.0,105140.0,0.22402207]
[1734487469629,0.40843989,105150.0,105140.0,0.22402207]
[1734487469925,0.40843989,105150.0,105140.0,0.2241433]
[1734487470315,0.40843989,105150.0,105140.0,0.00012123]
[1734487470515,0.70843989,105150.0,105140.0,0.00012123]
[1734487470742,0.40843989,105150.0,105140.0,0.00012123]
[1734487470928,0.04763989,105150.0,105140.0,0.00012123]
[1734487471136,0.40843989,105150.0,105140.0,0.00012123]
[1734487473429,0.70843989,105150.0,105140.0,0.00012123]
[1734487473629,0.40843989,105150.0,105140.0,0.00012123]
[1734487473828,0.70843989,105150.0,105140.0,0.00012123]
[1734487474529,0.40843989,105150.0,105140.0,0.00012123]
[1734487475930,0.40843989,105150.0,105140.0,0.04766923]
[1734487476121,9.689e-05,105150.0,105140.0,0.57529062]
[1734487476326,0.408334,105170.0,105150.0,0.047542]
[1734487476526,0.408334,105170.0,105150.0,0.408342]
[1734487477222,0.047539,105160.0,105140.0,0.51916623]
[1734487477420,0.3608,105180.0,105150.0,0.3608]
[1734487477634,0.3608,105180.0,105170.0,0.047534]
[1734487477819,0.40839278,105190.0,105170.0,0.047534]
[1734487478433,0.047532,105180.0,105160.0,0.408339]
[1734487478818,0.047532,105180.0,105150.0,0.4822]
[1734487478819,0.047534,105170.0,105150.0,0.529743]
[1734487479029,0.047539,105160.0,105140.0,0.51916923]
[1734487479733,0.3608,105180.0,105150.0,0.3608]
[1734487480029,0.047535,105170.0,105160.0,0.047538]
[1734487480233,0.047535,105170.0,105150.0,0.408343]
[1734487480528,0.408331,105180.0,105160.0,0.047538]
[1734487480835,0.047534,105170.0,105160.0,0.047538]
[1734487481933,0.3608,105180.0,105160.0,0.408338]
[1734487481934,0.40833,105180.0,105160.0,0.408338]
[1734487482330,0.047534,105170.0,105150.0,0.3608]
[1734487482530,0.047534,105170.0,105150.0,0.408343]
[1734487482840,0.408334,105170.0,105150.0,0.408343]
[1734487483033,0.047534,105170.0,105150.0,0.408343]
[1734487483830,0.3608,105170.0,105140.0,0.47162123]
[1734487484028,0.408335,105170.0,105150.0,0.047542]
[1734487484334,0.3608,105180.0,105150.0,1.68299454]
[1734487484537,0.40833,105180.0,105170.0,0.39542411]
[1734487484837,0.40833,105180.0,105170.0,1.04930165]
[1734487485224,0.04753,105180.0,105170.0,0.65387754]
[1734487485425,0.57515139,105180.0,105170.0,0.65387754]
[1734487485626,0.57515139,105180.0,105170.0,0.20198711]
[1734487485826,0.57515139,105180.0,105170.0,0.33913269]
[1734487486037,0.57515139,105180.0,105170.0,0.16698668]
[1734487486226,0.87515139,105180.0,105170.0,0.16698668]
[1734487486828,0.87515139,105180.0,105160.0,0.84731454]
[1734487486829,0.047534,105170.0,105160.0,0.84731454]
[1734487487139,0.047539,105160.0,105150.0,1.12912151]
[1734487487447,0.69586039,105160.0,105150.0,1.01817851]
[1734487487738,0.99586039,105160.0,105150.0,1.01817851]
[1734487488035,0.99586039,105160.0,105150.0,0.50810468]
[1734487488430,0.69586039,105160.0,105140.0,0.56468198]
[1734487488636,0.408343,105150.0,105140.0,0.00012123]
[1734487490929,0.047543,105150.0,105140.0,0.00012123]
[1734487491546,0.708343,105150.0,105140.0,0.00012123]
[1734487491732,0.408343,105150.0,105140.0,0.00012123]
[1734487491936,0.52671334,105150.0,105140.0,0.00012123]
[1734487492345,0.82671334,105150.0,105140.0,0.00012123]
[1734487492547,0.64011334,105150.0,105140.0,0.00012123]
[1734487493146,0.94011334,105150.0,105140.0,0.00012123]
[1734487493446,0.94011334,105150.0,105140.0,2.3e-07]
[1734487493840,0.64011334,105150.0,105140.0,2.3e-07]
[1734487495332,0.94011334,105150.0,105140.0,2.3e-07]
[1734487495537,0.047557,105120.0,105110.0,0.4744]
[1734487495737,0.16592734,105120.0,105110.0,0.4744]
[1734487495943,0.16592734,105120.0,105110.0,0.1136]
[1734487496648,0.52672734,105120.0,105110.0,0.00011012]
[1734487496941,0.52672734,105120.0,105110.0,0.28371762]
[1734487498539,0.82672734,105120.0,105110.0,0.33036785]
[1734487498742,0.82672734,105120.0,105110.0,8.5e-07]
[1734487499246,0.82672734,105120.0,105090.0,0.01]
[1734487499247,0.047566,105100.0,105090.0,0.01]
[1734487499747,0.047566,105100.0,105090.0,0.01007811]
[1734487500148,0.047566,105100.0,105090.0,0.37087811]
[1734487500535,0.16593634,105100.0,105090.0,0.01007811]
[1734487500740,0.52673634,105100.0,105090.0,0.01007811]
[1734487500950,0.16593634,105100.0,105090.0,0.01007811]
[1734487501337,0.16593634,105100.0,105090.0,0.37087811]
[1734487501842,0.20902634,105100.0,105090.0,0.37087811]
[1734487502137,0.04764484,105110.0,105090.0,0.41844611]
[1734487502340,8.284e-05,105110.0,105100.0,0.3608]
[1734487502538,0.047556,105130.0,105110.0,0.047559]
[1734487502852,0.047556,105130.0,105120.0,0.2353]
[1734487503044,0.084076,105130.0,105120.0,0.2353]
[1734487503240,0.084076,105130.0,105120.0,0.5961]
[1734487503436,0.70240627,105150.0,105120.0,0.5961]
[1734487503644,0.70240627,105150.0,105130.0,0.3608]
[1734487503645,0.047552,105140.0,105130.0,0.3608]
[1734487504348,0.047553,105130.0,105120.0,0.116]
[1734487504554,0.047557,105120.0,105110.0,0.3608]
[1734487505352,0.047562,105110.0,105100.0,0.5983]
[1734487505539,0.047562,105110.0,105100.0,0.2375]
[1734487506142,0.047562,105110.0,105100.0,0.5983]
[1734487506355,0.047562,105110.0,105100.0,0.645866]
[1734487506562,0.047562,105110.0,105100.0,0.5983]
[1734487507352,0.047562,105110.0,105090.0,0.82554715]
[1734487507543,0.047566,105100.0,105090.0,0.48587811]
[1734487507952,0.047566,105100.0,105090.0,0.12507811]
[1734487508354,0.047566,105100.0,105090.0,0.01007811]
[1734487508555,0.047566,105100.0,105090.0,0.37087811]
[1734487510850,0.52673634,105100.0,105090.0,0.01007811]
[1734487511250,0.16593634,105100.0,105090.0,0.01007811]
[1734487512657,0.047566,105100.0,105090.0,0.37087811]
[1734487513057,0.16593634,105100.0,105090.0,0.37087811]
[1734487513354,0.52673634,105100.0,105090.0,0.01007811]
[1734487514354,0.16593634,105100.0,105090.0,0.37087811]
[1734487514852,0.047566,105100.0,105090.0,0.37087811]
[1734487515057,0.16593634,105100.0,105090.0,0.37087811]
[1734487515448,0.16593634,105100.0,105090.0,0.01007811]
[1734487515653,0.52673634,105100.0,105090.0,0.01007811]
[1734487515954,0.16593634,105100.0,105090.0,0.37087811]
[1734487516349,0.05719572,105110.0,105090.0,0.41844611]
[1734487516659,0.047558,105120.0,105100.0,0.408365]
[1734487516850,0.16592834,105120.0,105110.0,0.5955]
[1734487517253,0.52672834,105120.0,105110.0,0.2347]
[1734487517554,0.047566,105100.0,105090.0,0.01007811]
[1734487517759,0.52673634,105100.0,105090.0,0.01007811]
[1734487517948,0.64510668,105100.0,105090.0,7.811e-05]
[1734487518150,0.047575,105080.0,105070.0,0.81502659]
[1734487518350,0.16594534,105080.0,105070.0,0.39743242]
[1734487518556,0.52674534,105080.0,105070.0,0.39743242]
[1734487518758,0.04758,105070.0,105060.0,0.64213242]
[1734487518963,0.40838,105070.0,105060.0,0.51643242]
[1734487519262,0.4084491,105070.0,105060.0,8.047e-05]
[1734487519849,0.52681944,105070.0,105060.0,0.21179525]
[1734487520170,0.52681944,105070.0,105040.0,0.39793242]
[1734487520171,0.047589,105050.0,105040.0,0.39793242]
[1734487520454,0.52675934,105050.0,105030.0,0.01]
[1734487520655,0.408393,105040.0,105030.0,0.01]
[1734487520861,0.047593,105040.0,105030.0,0.01]
[1734487521158,0.82676334,105040.0,105030.0,0.01]
[1734487521368,0.82676334,105040.0,105010.0,1.10303242]
[1734487521369,0.047602,105020.0,105010.0,0.3448]
[1734487522049,0.16597234,105020.0,105010.0,0.3448]
[1734487524859,0.047602,105020.0,105010.0,0.7056]
[1734487525555,0.047602,105020.0,105010.0,0.3448]
[1734487525755,0.047602,105020.0,105010.0,0.1114]
[1734487525756,0.52677234,105020.0,105010.0,0.1114]
[1734487526160,0.52677234,105020.0,105000.0,0.3608]
[1734487526361,0.047607,105010.0,105000.0,0.3608]
[1734487526566,0.047598,105030.0,105020.0,0.42562066]
[1734487526863,0.16596834,105030.0,105020.0,0.42562066]
[1734487527862,0.16596834,105030.0,105020.0,0.78642066]
[1734487529072,0.52676834,105030.0,105020.0,0.42562066]
[1734487529456,0.16596834,105030.0,105020.0,0.42562066]
[1734487529657,0.52676834,105030.0,105020.0,0.42562066]
[1734487529861,0.16596834,105030.0,105020.0,0.42562066]
[1734487531455,0.16596834,105030.0,105020.0,0.78642066]
[1734487532755,0.18507137,105030.0,105020.0,0.42562066]
[1734487533887,0.18507137,105030.0,105020.0,0.78642066]
[1734487536397,0.047594,105040.0,105020.0,1.20592066]
[1734487536594,0.047588,105060.0,105030.0,0.521397]
[1734487536778,0.047584,105060.0,105050.0,0.7216]
[1734487536980,0.05837869,105070.0,105050.0,0.769187]
[1734487537184,0.05837869,105070.0,105060.0,0.4758]
[1734487537185,0.04907986,105070.0,105060.0,0.4758]
[1734487540300,0.047576,105080.0,105060.0,0.52347444]
[1734487540604,0.047576,105080.0,105070.0,0.4715]
[1734487541599,0.00960499,105090.0,105070.0,0.4715]
[1734487541901,0.047576,105080.0,105070.0,0.4715]
[1734487542205,0.05717599,105090.0,105070.0,0.87988]
[1734487542410,0.05717599,105090.0,105080.0,0.3608]
[1734487542911,0.07601982,105090.0,105080.0,0.36182918]
[1734487543496,0.07601982,105090.0,105080.0,0.36197089]
[1734487544006,0.07601982,105090.0,105080.0,0.3621126]
[1734487544603,0.07601982,105090.0,105080.0,0.36214577]
[1734487545206,0.048068,105100.0,105080.0,0.40972077]
[1734487545400,0.04899118,105110.0,105090.0,0.519571]
[1734487545604,0.04899118,105110.0,105100.0,0.36214577]
[1734487546406,0.06821159,105110.0,105100.0,0.36214577]
[1734487546605,0.04899118,105110.0,105100.0,0.36214577]
[1734487548212,0.00142818,105110.0,105100.0,0.40971177]
[1734487548510,7.663e-05,105120.0,105100.0,0.40982979]
[1734487548715,7.663e-05,105120.0,105110.0,0.4822]
[1734487549012,7.663e-05,105120.0,105110.0,0.529762]
[1734487549202,7.663e-05,105120.0,105110.0,0.829762]
[1734487549665,7.663e-05,105120.0,105110.0,0.83110777]
[1734487549810,0.22180861,105150.0,105130.0,0.047551]
[1734487550009,0.11837034,105140.0,105130.0,0.3608]
[1734487550212,0.16591834,105140.0,105130.0,0.3608]
[1734487550601,0.16591834,105140.0,105130.0,0.36228759]
[1734487550799,0.16603192,105140.0,105130.0,0.36228759]
[1734487551402,0.04766158,105140.0,105130.0,0.36228759]
[1734487551917,0.04766158,105140.0,105130.0,0.36242941]
[1734487552508,0.16603192,105140.0,105130.0,0.36242941]
[1734487553012,0.16603192,105140.0,105130.0,0.36257123]
[1734487554318,0.16603192,105140.0,105130.0,0.36271252]
[1734487555601,0.04766158,105140.0,105130.0,0.36285381]
[1734487556820,0.16603192,105140.0,105130.0,0.36285381]
[1734487557915,0.16603192,105140.0,105130.0,0.3629951]
[1734487558502,0.16603192,105140.0,105130.0,0.0021951]
[1734487558709,0.16653192,105140.0,105130.0,0.0021951]
[1734487559223,0.16653192,105140.0,105130.0,0.00233639]
[1734487559615,0.16603192,105140.0,105130.0,0.00233639]
[1734487560313,0.16603192,105140.0,105130.0,0.363278]
[1734487560314,0.04766158,105140.0,105130.0,0.363278]
[1734487560621,0.06708988,105140.0,105130.0,0.363278]
[1734487561515,0.06708988,105140.0,105130.0,0.36341961]
[1734487561712,0.00011358,105140.0,105130.0,0.41097261]
[1734487561923,0.22180861,105150.0,105130.0,0.47901961]
[1734487562213,0.22180861,105150.0,105140.0,0.408348]
[1734487562417,0.22180861,105150.0,105140.0,0.522748]
[1734487562624,0.22230861,105150.0,105140.0,0.52536761]
[1734487563314,0.0005,105150.0,105140.0,0.52536761]
[1734487563520,0.04896749,105160.0,105150.0,0.047543]
[1734487563817,0.04896749,105160.0,105150.0,0.408343]
[1734487564121,0.04764601,105170.0,105150.0,0.6608]
[1734487564348,0.04764601,105170.0,105160.0,0.408339]
[1734487564505,0.04764601,105170.0,105160.0,0.41095861]
[1734487565115,0.04764601,105170.0,105160.0,0.52285861]
[1734487565514,0.0206741,105200.0,105160.0,0.94122895]
[1734487565813,0.04930768,105200.0,105190.0,0.7216]
[1734487566005,0.047526,105190.0,105180.0,0.40833]
[1734487566224,0.00178668,105200.0,105190.0,0.047525]
[1734487566418,0.00178668,105200.0,105190.0,0.520225]
[1734487566614,0.00178668,105200.0,105190.0,0.52293749]
[1734487567312,0.00178668,105200.0,105190.0,0.82293749]
[1734487567709,0.00178668,105200.0,105190.0,0.52293749]
[1734487568113,0.04930768,105200.0,105190.0,0.47541249]
[1734487568589,0.04930768,105200.0,105190.0,0.22102167]
[1734487568789,0.04930768,105200.0,105190.0,0.00271249]
[1734487568996,0.04930768,105200.0,105150.0,0.3608]
[1734487568997,0.04753,105180.0,105150.0,0.3608]
[1734487569195,0.047543,105150.0,105140.0,0.4764]
[1734487569893,0.047543,105150.0,105140.0,0.3609025]
[1734487570286,0.047535,105170.0,105150.0,0.047543]
[1734487570487,0.20151959,105180.0,105150.0,0.047543]
[1734487570488,0.16640034,105180.0,105160.0,0.7216]
[1734487570685,0.16590034,105180.0,105170.0,0.3608]
[1734487571498,0.04753,105180.0,105170.0,0.3608]
[1734487571696,0.04803,105180.0,105170.0,0.3608]
[1734487572194,0.0005,105180.0,105170.0,0.408334]
[1734487572492,0.0005,105180.0,105170.0,0.526834]
[1734487572701,0.0005,105180.0,105170.0,0.642734]
[1734487572896,0.0005,105180.0,105170.0,0.942734]
[1734487573087,0.0005,105180.0,105170.0,0.642734]
[1734487573791,0.04930768,105200.0,105180.0,0.04753]
[1734487574099,0.04930768,105200.0,105190.0,0.3608]
[1734487576397,0.04753,105180.0,105170.0,0.4793]
[1734487576692,0.047534,105170.0,105150.0,0.525443]
[1734487577200,0.047534,105170.0,105160.0,0.3608]
[1734487577401,0.13018325,105180.0,105160.0,0.3608]
[1734487577598,0.047534,105180.0,105160.0,0.3608]
[1734487578295,0.047532,105180.0,105170.0,0.3608]